Cogmind - Beta 16 @@@ ROGUE MODE // 2026.01.18 @ 17:16:52 Player: K0T Result: Destroyed by JW-6YO(R) with Subdweller Beam Cannon Performance ------------- Evolutions (0) 0 Regions Visited (3) 600 Robots Destroyed (20) 100 Value Destroyed (523) 523 Prototype IDs (0) 0 Alien Tech Used (0) 0 Bonus (-28) -28 TOTAL SCORE: 1195 Bonus ------- Follower Combat Kills 25 Friendly Fire -53 Cogmind --------- Core Integrity 0/250 Matter 161/300 Energy 197/200 System Corruption 2% Temperature Cool (9) Movement Walking (190) Ox1 Location -10/Subcaves Parts ------- > --- POWER (1) -------- Subdweller Power Source > --- PROPULSION (2) --- Light Treads Carbon-fiber Leg > --- UTILITY (2) ------ Large Storage Unit Hacking Suite > --- WEAPON (2) ------- Battle Rifle Light Cannon > --- INVENTORY (15) --- Subdweller Power Source Light Angular Momentum Engine Carbon-fiber Leg Weight Redist. System Subdweller Optics Subdweller Optics Core Shielding Hacking Suite Light Cannon Grenade Launcher Rocket Launcher Datajack Peak State ------------ > --- POWER ------------ Subdweller Power Source > --- PROPULSION ------- Light Treads Carbon-fiber Leg > --- UTILITY ---------- Large Storage Unit Hacking Suite > --- WEAPON ----------- Battle Rifle Light Cannon > --- INVENTORY -------- Subdweller Power Source Light Angular Momentum Engine Carbon-fiber Leg Weight Redist. System Subdweller Optics Subdweller Optics Core Shielding Hacking Suite Light Cannon Grenade Launcher Rocket Launcher Datajack [Rating: 15] Favorites ----------- Power Light Ion Engine Engine Light Ion Engine Propulsion Light Treads Treads Light Treads Leg Carbon-fiber Leg Utility Large Storage Unit Storage Large Storage Unit Hackware Hacking Suite Protection Light Armor Plating Weapon Light Assault Rifle Ballistic Gun Light Assault Rifle Ballistic Cannon Light Cannon Special Weapon Mining Laser Build | -11 -10 -10 -10 ------- Run | Yrd Mat Min Sub Slots Evolved . | . . . . Power . | . . . . Propulsion . | . . . . Utility . | . . . . Weapon . | . . . . Parts Attached 17 | 6 6 . 5 Power 3 | 1 1 . 1 Engine 3 | 1 1 . 1 Core . | . . . . Reactor . | . . . . Propulsion 4 | 2 . . 2 Treads 3 | 2 . . 1 Leg 1 | . . . 1 Wheel . | . . . . Hover . | . . . . Flight . | . . . . Utility 4 | 1 3 . . Device . | . . . . Storage 2 | 1 1 . . Processor . | . . . . Hackware 1 | . 1 . . Protection 1 | . 1 . . Artifact . | . . . . Weapon 6 | 2 2 . 2 Energy Gun . | . . . . Energy Cannon . | . . . . Ballistic Gun 3 | 2 . . 1 Ballistic Cannon 2 | . 1 . 1 Launcher . | . . . . Special Weapon 1 | . 1 . . Impact Weapon . | . . . . Slashing Weapon . | . . . . Piercing Weapon . | . . . . Special Melee Weapon . | . . . . Unidentified Prototypes . | . . . . Parts Lost 5 | . 1 . 4 Power 2 | . 1 . 1 Propulsion 2 | . . . 2 Utility . | . . . . Weapon 1 | . . . 1 Highest Loss Streak 3 | . 1 . 3 To Critical Strikes . | . . . . Average Backups 7 | . 4 9 13 Power . | . . . 1 Propulsion 1 | . . 1 2 Utility 2 | . 1 3 3 Weapon 3 | . 1 4 4 Tool/Special . | . . . . Unused Backups 11 | . . . 11 Power 2 | . . . 2 Propulsion 1 | . . . 1 Utility 4 | . . . 4 Weapon 3 | . . . 3 Tool/Special 1 | . . . 1 Average Slot Usage (%) 98 | . 99 100 92 Engine 13 | . 13 14 14 Treads 26 | . 28 28 21 Storage 14 | . 14 14 14 Hackware 12 | . 10 14 14 Protection 1 | . 3 . . Ballistic Gun 10 | . 21 . 3 Ballistic Cannon 9 | . 6 14 10 Special Weapon 6 | . . 14 11 Peak Build Rating 15 | 6 10 10 15 Average Rating 9 | 4 8 10 10 On Entrance 6 | . 6 10 10 Avg Prop Armor Cover (%) 12 | . . . 12 Naked Turns . | . . . . Heaviest Build 30 | 10 28 27 30 Greatest Support 40 | 40 40 40 40 Greatest Overweight (x) 1 | . . . 1 Average Overweight (x) . | . . . . Largest Inventory Capacity 15 | 8 15 15 15 Average Capacity 14 | 6 14 15 15 Most Carried 15 | 5 9 10 15 Average Carried 7 | . 4 9 13 Final Capacity 15 | 8 15 15 15 Final Carried 12 | . 9 10 12 Class Distribution -------------------- 97% | Mutant Dominant Class ---------------- Mutant | -10/Materials Mutant | -10/Mines Mutant | -10/Subcaves Resources | -11 -10 -10 -10 ----------- Run | Yrd Mat Min Sub Matter Collected 568 | 248 171 . 149 Remotely . | . . . . Salvage Created 636 | . 482 . 154 Parts 44 | . 33 . 11 Haulers Intercepted 2 | . 2 . . Recyclers Shooed 1 | . 1 . . Parts Field Recycled . | . . . . Retrieved Matter . | . . . . Parts Self-Destructed 2 | . . . 2 Prevented . | . . . . Parts Restored . | . . . . Kills | -11 -10 -10 -10 ------- Run | Yrd Mat Min Sub Combat Hostiles Destroyed 14 | . 10 . 4 Guns 12 | . 10 . 2 Cannons 2 | . . . 2 Classes Destroyed 7 | . 5 . 2 Hauler 2 | . 2 . . Operator 2 | . 2 . . Watcher 1 | . 1 . . Swarmer 3 | . 3 . . Grunt 8 | . 7 . 1 Subdweller 3 | . . . 3 Zionite 1 | . . . 1 Best Kill Streak 3 | . 3 . 1 Combat Bots Only 3 | . 3 . 1 Max Kills in Single Turn 2 | . 2 . 1 Gunslinging . | . . . . Exploded . | . . . . Melee . | . . . . Uniques/NPCs Destroyed . | . . . . Combat | -11 -10 -10 -10 -------- Run | Yrd Mat Min Sub Hostile Shots Fired 105 | . 55 . 50 Missed 31 | . 13 . 18 Hits 74 | . 42 . 32 Projectile 74 | . 42 . 32 Critical Strikes 2 | . . . 2 Damage Taken 1068 | . 462 . 606 Core 265 | . 93 . 172 Absorbed by Shields . | . . . . Regen/Repaired (Parts) 30 | . 30 . . Core Remaining (%) 100 | 100 . . . Volleys Fired 108 | . 61 . 47 Largest 2 | . 2 . 2 Hottest 100 | . 100 . 55 Shots Fired 173 | . 121 . 52 Gun 133 | . 114 . 19 Cannon 39 | . 6 . 33 Launcher . | . . . . Special 1 | . 1 . . Kinetic 172 | . 120 . 52 Thermal 1 | . 1 . . Explosive . | . . . . Electromagnetic . | . . . . Robot Hit Streak 15 | . 12 . 15 Robot Miss Streak 4 | . 4 . 3 Penetration Max . | . . . . Secondary Targets 3 | . 3 . . Max Gunslinging Chain 1 | . 1 . . Shots Hit Robots 115 | . 75 . 40 Core Hits 46 | . 35 . 11 Critical Kills 1 | . 1 . . Critical Parts Destroyed . | . . . . Critical Strikes 3 | . 1 . 2 Destroy 1 | . 1 . . Blast 2 | . . . 2 Melee Attacks . | . . . . Impact . | . . . . Slashing . | . . . . Piercing . | . . . . Sneak Attacks . | . . . . Combat Hostiles . | . . . . Follow-up Attacks . | . . . . Damage Inflicted 1370 | . 642 . 728 Guns 868 | . 618 . 250 Cannons 494 | . 16 . 478 Explosions . | . . . . Melee . | . . . . Ramming 8 | . 8 . . Kinetic 1362 | . 634 . 728 Thermal . | . . . . Explosive . | . . . . Electromagnetic . | . . . . Impact . | . . . . Slashing . | . . . . Piercing . | . . . . Highest Corruption 2 | . 2 2 2 Average Corruption 2 | . 2 2 2 Corruption Purged . | . . . . Corruption Blocked . | . . . . Effects 25 | . 6 12 7 Message Errors 10 | . 4 3 3 Matter Fused 7 | . 1 5 1 Heat Flow Errors 2 | . . 2 . Parts Rejected 3 | . . . 3 Data Loss (minor) 2 | . 1 1 . Data Loss (major) 1 | . . 1 . Overload Shots . | . . . . Overflow Damage . | . . . . Projectiles . | . . . . Explosions . | . . . . Melee . | . . . . Knockbacks 3 | . . . 3 Impact . | . . . . Kinetic 3 | . . . 3 Secondary . | . . . . Self-Inflicted Damage . | . . . . Shots . | . . . . Rammed 1 | . 1 . . Targets Rammed 1 | . 1 . . Kicked . | . . . . Crushed . | . . . . Highest Temperature 114 | . 79 114 . Average Temperature 21 | . 16 59 . Received Heat Transfer 351 | . 192 . 159 Siege Activations . | . . . . Martial Activations . | . . . . Shielding Activations . | . . . . Robots Disrupted . | . . . . Combat Hostiles . | . . . . Robots Corrupted . | . . . . Combat Hostiles . | . . . . Parts Fried . | . . . . Impact Corruptions . | . . . . Robots Melted . | . . . . Combat Hostiles . | . . . . Parts Melted . | . . . . Heat Transferred . | . . . . Parts Sabotaged . | . . . . Parts Stolen . | . . . . Parts Stripped . | . . . . Power Chain Reactions . | . . . . Alert | -11 -10 -10 -10 ------- Run | Yrd Mat Min Sub Maximum Alert Level . | . . . . Low Security (%) 100 | 100 100 100 . Level 1 . | . . . . Level 2 . | . . . . Level 3 . | . . . . Level 4 . | . . . . Level 5 . | . . . . High Security . | . . . . Max Security . | . . . . Peak Influence 90 | . 90 10 . Initial 10 | . . 10 . Average 8 | . 13 . . Influence Increases 390 | . 337 . 53 Destroy 0b10 Robot/C 240 | . 200 . 40 Destroy 0b10 Robot/NC 25 | . 25 . . Destroy Leader 66 | . 56 . 10 Allied During Kill 3 | . . . 3 Successful Hack 10 | . 10 . . Select Force Hacks 30 | . 30 . . Disable Machine 15 | . 15 . . Destroy Structure 1 | . 1 . . Influence Decreases 390 | . 310 27 53 Entered New Map 17 | . . 17 . Time Decay 343 | . 300 10 33 Lost Part 10 | . 10 . . Lost Ally 20 | . . . 20 Squads Dispatched 4 | . 4 . . Investigation 2 | . 2 . . Extermination . | . . . . Reinforcement 2 | . 2 . . Assault . | . . . . Garrison . | . . . . Intercept . | . . . . Searches Triggered . | . . . . Construction Impeded . | . . . . Haulers Reinforced . | . . . . Active Scanning Responses . | . . . . Cargo Convoy Interrupts . | . . . . Stealth | -11 -10 -10 -10 --------- Run | Yrd Mat Min Sub Distress Signals 2 | . 2 . . Communications Jammed . | . . . . Distress Signals . | . . . . Times Spotted 29 | . 22 . 7 Peak Tracking Total 3 | . 3 . 2 Tactical Retreats . | . . . . Traps | -11 -10 -10 -10 ------- Run | Yrd Mat Min Sub Traps Triggered 1 | . 1 . . Indirectly . | . . . . Trap Hack Attempts . | . . . . Triggered . | . . . . Disarmed . | . . . . Reprogrammed . | . . . . Reused . | . . . . Traps Extracted . | . . . . Installed . | . . . . Triggered . | . . . . Machines | -11 -10 -10 -10 ---------- Run | Yrd Mat Min Sub Machines Disabled 1 | . 1 . . Max in Single Turn 1 | . 1 . . Machines Repaired . | . . . . Machines Dismantled . | . . . . Machines Sabotaged . | . . . . Overloaded Fab Kills . | . . . . Hacking | -11 -10 -10 -10 --------- Run | Yrd Mat Min Sub Machines Accessed 8 | . 8 . . Terminals 6 | . 6 . . Fabricators . | . . . . Repair Stations 1 | . 1 . . Recycling Units 1 | . 1 . . Scanalyzers . | . . . . Garrison Access . | . . . . Total Hacks 17 | . 17 . . Successful 12 | . 12 . . Failed 5 | . 5 . . Catastrophic . | . . . . Database Lockouts . | . . . . Manual 15 | . 15 . . Terminals 13 | . 13 . . Fabricators . | . . . . Repair Stations 1 | . 1 . . Recycling Units 3 | . 3 . . Scanalyzers . | . . . . Garrison Access . | . . . . Terminal Hacks 1 | . 1 . . Robot Analysis 1 | . 1 . . Fabricator Hacks . | . . . . Repair Station Hacks . | . . . . Recycling Unit Hacks 2 | . 2 . . Retrieve Matter 1 | . 1 . . Retrieve Components 1 | . 1 . . Scanalyzer . | . . . . Garrison Access Hacks . | . . . . Unauthorized Hacks 9 | . 9 . . Terminals 7 | . 7 . . Botnet 4 | . 4 . . Skim 3 | . 3 . . Fabricators . | . . . . Repair Stations 1 | . 1 . . Patch 1 | . 1 . . Recycling Units 1 | . 1 . . Tunnel 1 | . 1 . . Scanalyzers . | . . . . Garrison Access . | . . . . Data Cores Recovered . | . . . . Used . | . . . . Hacking Detections 5 | . 5 . . Full Trace Events . | . . . . Feedback Events . | . . . . Feedback Blocked . | . . . . Robot Schematics Acquired . | . . . . Robots Built . | . . . . Authchips . | . . . . Time . | . . . . Total Robot Build Rating . | . . . . Part Schematics Acquired . | . . . . Parts Built . | . . . . Authchips . | . . . . Time . | . . . . Total Part Build Rating . | . . . . Part Studies Acquired . | . . . . Parts Repaired . | . . . . Time . | . . . . Parts Recycled . | . . . . Recycled Matter . | . . . . Retrieved Matter 81 | . 81 . . Retrieved Components 10 | . 10 . . Parts Scanalyzed . | . . . . Part Schematics Acquired . | . . . . Parts Damaged . | . . . . Bothacking | -11 -10 -10 -10 ------------ Run | Yrd Mat Min Sub Used RIF Installer . | . . . . Robots Hacked . | . . . . Non-combat . | . . . . Combat . | . . . . Robot Hacks Applied . | . . . . Relay Couplers Released . | . . . . Fabnet Peak Effective % . | . . . . Robots Rewired . | . . . . Allies Hacked . | . . . . Hacks Repelled . | . . . . Allies | -11 -10 -10 -10 -------- Run | Yrd Mat Min Sub Total Allies 2 | . . 2 . Largest Group 2 | . . 2 2 Highest-Rated Group 41 | . . 41 41 Highest-Rated Ally 31 | . . 31 31 Total Orders . | . . . . Ally Attacks 12 | . . . 12 Total Damage 127 | . . . 127 Kills 1 | . . . 1 Allies Corrupted . | . . . . Allies Melted . | . . . . Intel | -11 -10 -10 -10 ------- Run | Yrd Mat Min Sub Active Infowar (turns) . | . . . . Robot Analysis Total 1 | . 1 . . Derelict Logs Recovered 2 | . . 2 . Drone Launches . | . . . . Drone Recoveries . | . . . . Exploration | -11 -10 -10 -10 ------------- Run | Yrd Mat Min Sub Turns Passed 3300 | 58 1536 988 718 Spaces Moved 1799 | 37 820 610 332 Core 11 | 11 . . . Treads 1769 | 26 820 610 313 Legs 19 | . . . 19 Wheels . | . . . . Hover . | . . . . Flight . | . . . . Fastest Speed 50 | 50 160 160 160 Average Speed 163 | 127 160 160 180 Slowest Speed 240 | 160 160 160 240 Overloaded Moves . | . . . . Propulsion Burnouts . | . . . . Robots Hopped . | . . . . Potential Cave-ins . | . . . . Cave-ins Triggered . | . . . . Exploration Rate (%) 57 | 4 98 99 28 Regions Visited 3 Branch Regions 2 Pre-discovered Areas 2 | . 1 1 . Known Exits Taken . | . . . . Unknown Exits Taken 3 | 1 1 1 . Scrap Searched 1 | . . 1 . Spaces Dug 1 | . 1 . . Terrain Destroyed 1 | . 1 . . Melee . | . . . . Projectile 1 | . 1 . . AOE . | . . . . Terrain Rammed . | . . . . Walls Destroyed . | . . . . Machines Disabled . | . . . . Actions | -11 -10 -10 -10 --------- Run | Yrd Mat Min Sub Total 2018 | 48 944 622 404 Wait 56 | . 40 12 4 Move 1796 | 36 819 609 332 Hop . | . . . . Pick Up 32 | 6 14 1 11 Fast Attach . | . . . . Attach 18 | 6 4 . 8 Detach . | . . . . Swap 2 | . 2 . . Drop 5 | . 3 . 2 Fire 108 | . 61 . 47 Melee . | . . . . Ram . | . . . . Kick . | . . . . Crush 1 | . 1 . . Escape Stasis . | . . . . Rewire . | . . . . Trap . | . . . . Miscellaneous . | . . . . Route ------- -11/Scrapyard -10/Materials (discovered 5 exits: [*Mat x3] / [*Min x2]) -10/Mines (discovered 4 exits: [*Mat x2] / [*Exi] / [*Sub]) -10/Subcaves History --------- Turn | Location | Event 7 | -11/Scrapyard | Discovered new exit (range 16) 59 | -11/Scrapyard | Entered Materials 304 | -10/Materials | Build established: Mutant 346 | -10/Materials | Discovered new exit (range 14) 513 | -10/Materials | Discovered new exit (range 16) 881 | -10/Materials | Discovered new exit (range 16) 1257 | -10/Materials | Discovered new exit (range 16) 1433 | -10/Materials | Discovered new exit (range 8) 1595 | -10/Materials | Entered Mines 1608 | -10/Mines | Learned Materials emergency access door positions 1642 | -10/Mines | Discovered new exit (range 6) 1856 | -10/Mines | Discovered new exit (range 8) 2053 | -10/Mines | Deemed a non-threat by the Exiles lab entrance 2055 | -10/Mines | Discovered new exit (range 5) 2101 | -10/Mines | Learned location of 1 exit from Materials 2143 | -10/Mines | Received a Rocket Launcher from a helpful Derelict 2281 | -10/Mines | Discovered new exit (range 7) 2349 | -10/Mines | Learned location of Storage (-7) 2583 | -10/Mines | Entered Subcaves 2583 | -10/Subcaves | Accompanied by 2 allies 2588 | -10/Subcaves | Led the pair of lost Derelicts to an unsafe place 2995 | -10/Subcaves | Core integrity fell below 50% 3060 | -10/Subcaves | Shifting Twisted Machinery released Sub. Monowheel 3099 | -10/Subcaves | Shifting Twisted Machinery released Battle Rifle 3242 | -10/Subcaves | Core integrity fell below 20% 3268 | -10/Subcaves | Lost 3 parts (1p1n1w) 3301 | -10/Subcaves | Destroyed by JW-6YO(R) with Subdweller Beam Cannon Last Messages --------------- Battle Rifle falls loose from the Twisted Machinery. 03104_ Dropped Lgt. Assault Rifle. 03104_ Acquired Battle Rifle. 03105_ Dropped Lgt. Cannon. 03111_ IJO8 MGLN8/KBVL1EWYTI4ZGZO&UI6EU 03113_ Subatomizers dissect the Lgt. Assault Rifle. 03214_ 9C-T03(R): "ECOKILL!" 03216_ Lgt. Treads destroyed. 03218_ GO-JDD(z) destroyed. 03227_ Mining Laser destroyed. 03237_ Lgt. Ion Engine destroyed. 03246_ 9C-T03(R) destroyed. 03252_ Acquired Sub. Power Source. 03253_ Acquired 42 matter. 03259_ Acquired Sub. Optics. 03273_ System corrupted: Lgt. Cannon rejected. 03274_ Acquired Lgt. Cannon. 03285_ HC-DGG(R) destroyed. Map ----- +----------------------------------------------------+ | ??????????# ## #??????????? | | ??????????# ### ### #?????????? | | ??????????# ### #?## #????????? | | ??????????# ### #??## ## ##????????? | | ??????????# ###?# #???? ###?##?????????? | | ??????????# #??? #???? #??????????????? | | ?????????## ##?? #???? #??????????????? | | ????###??# ##??# ## ????###??????????????? | | #?### ###&& ###???##########????????????????????? | | ## ##% #???????????????????????????????????? | | %% ###??##??????????????????????????????? | | # ### #??????????????????????????????? | | #???????????????????????????????? | | #### #???????????????????????????????? | | ##??## ##??????????????????????????????? | | ###### ##??## #??????????????????????????????? | | ?????## ##?# #??????????????????????????????? | | ???#### ### ##??????????????????????????????? | | ?### "= ## ##??????????????????????????????? | | ##"" ###" ### #??????????????????????????????? | | # " #??" ### ##??????????????????????????????? | | """##??" ##?# ##??????????????????????????????? | | #####???" #?## #??######??????????????????????? | | #???????? #?# ##### ##?????????????????????? | | ]"#?????????#?## ###& & ##????????????????????? | | ###??????????## # !&& @ #????????????????????? | | ?????????????# ## ##????????????????????? | | ?????????????##""" #### #????????????????????? | | ??????????????#"""* ##??# R##????????????????????? | | ??????????????#"""%##???# #????????????????????? | | ????????????? "" ?# % ???????????????????? | | ????????????" """ % ?????????????????? | | ????????????# " "" ##&%[ ???????????????? | | ????????????##"""" ###""" ##?#=! ?????????????? | | ??????????????"""""#?## ""#???#### ???????????? | | ???????????????""""#??## "???????? ?????????? | | ???????????????????????## ????????? ????????? | | ????????????????????????###??????????? ?????????? | | ???????????????????????????????????????#?????????? | | ?????????????????????????????????????????????????? | | ?????????????????????????????????????????????????? | | ?????????????????????????????????????????????????? | | ?????????????????????????????????????????????????? | | ?????????????????????????????????????????????????? | | ?????????????????????????????????????????????????? | | ?????????????????????????????????????????????????? | | ?????????????????????????????????????????????????? | | ?????????????????????????????????????????????????? | | ?????????????????????????????????????????????????? | | ?????????????????????????????????????????????????? | +----------------------------------------------------+ Best States ------------- Heat Dissipation 25 Energy Generation 15 Energy Capacity 200 Matter Stores 300 Matter Capacity 300 Sight Range 16 Terrain Scan Density 10 Armor Coverage 150 Evasion (%) 40 Recoil Reduction 2 Offensive Hacking 10 Item Schematics ----------------- None Robot Schematics ------------------ None Fabricated ------------ Nothing Repaired ---------- Nothing Studied --------- None Alien Tech Used ----------------- None Achievements -------------- None Challenges ------------ None Game ------ Seed OvertunedUtilityScrap Manual? 0 Play Time 00:19:49 Cumulative 146.9 hours Start 2026.01.18 @ 17:01:14 End 2026.01.18 @ 17:16:52 Sessions 1 Manual Loads 0 Difficulty Rogue Special Mode None Game No. 82 Rogue 69 Adventurer 13 Explorer 0 Win Type - Total 1 Types 1/0/0/0/0/0/0/0/0/0 Lore% 41 Gallery% 39 Achievement% 25 Wizard Run 0 Options --------- Layout 1 ASCII 0 Keyboard 0 Movement Arrows Keybinds 0 Fullscreen 1 Font 24/Smallcaps Map View 50x35 Zoom Use 0% Tactical HUD 1 Map Filters NONE Filters NONE Steam 0 RUN: 1f7bdb60-e9b0-49f7-b2b9-9d62f720f30a